bitfinex/quotes_BTCUSD_20251001
["timestamp","ask_amount","ask_price","bid_price","bid_amount"]
[1759319555376,0.26287445,116680.0,116670.0,0.69008]
[1759319555753,0.26594445,116680.0,116670.0,0.69008]
[1759319555962,0.26079445,116680.0,116670.0,1.03519]
[1759319556835,0.26291445,116680.0,116670.0,1.03208]
[1759319557053,0.26598445,116680.0,116670.0,0.34]
[1759319557256,0.26291445,116680.0,116670.0,1.03204]
[1759319557633,0.26291445,116680.0,116670.0,0.34]
[1759319557837,0.26598445,116680.0,116670.0,1.03004]
[1759319558357,0.27400909,116680.0,116670.0,1.03004]
[1759319558779,0.27400909,116680.0,116670.0,0.58436]
[1759319559005,0.27400909,116680.0,116670.0,0.34]
[1759319559203,0.27400909,116680.0,116670.0,1.03004]
[1759319562387,0.27401626,116680.0,116670.0,1.03004]
[1759319562722,0.27094626,116680.0,116670.0,1.03204]
[1759319562931,0.26882626,116680.0,116670.0,1.03515]
[1759319563486,0.27094626,116680.0,116670.0,1.03204]
[1759319563668,0.27094626,116680.0,116670.0,0.34]
[1759319563818,0.27401626,116680.0,116670.0,1.03004]
[1759319566020,0.27401626,116680.0,116670.0,0.34]
[1759319566319,0.27401626,116680.0,116670.0,1.03004]
[1759319566919,0.27094626,116680.0,116670.0,1.03004]
[1759319567103,0.27401626,116680.0,116670.0,0.34]
[1759319567310,0.27401626,116680.0,116670.0,1.03004]
[1759319567915,0.27094626,116680.0,116670.0,1.03204]
[1759319568336,0.27094626,116680.0,116670.0,1.03004]
[1759319568594,0.27401626,116680.0,116670.0,1.03004]
[1759319568792,0.27401626,116680.0,116670.0,0.34]
[1759319568950,0.27401626,116680.0,116670.0,1.03004]
[1759319569150,0.27094626,116680.0,116670.0,1.03004]
[1759319569550,0.27401626,116680.0,116670.0,1.03004]
[1759319570015,0.27094626,116680.0,116670.0,0.44768]
[1759319570189,0.27401626,116680.0,116670.0,0.44568]
[1759319570405,0.27401626,116680.0,116670.0,0.69004]
[1759319570624,0.17143836,116660.0,116650.0,0.01967767]
[1759319570966,0.26082383,116660.0,116650.0,0.44568]
[1759319571180,0.26281383,116660.0,116650.0,0.69004]
[1759319571331,0.26594383,116660.0,116650.0,0.69004]
[1759319571534,0.26594383,116660.0,116650.0,1.0469713]
[1759319571713,0.26594383,116660.0,116650.0,1.04711083]
[1759319575212,0.26594383,116660.0,116650.0,0.35707083]
[1759319575419,0.26594383,116660.0,116650.0,1.04715083]
[1759319576710,0.26594383,116660.0,116650.0,0.35707083]
[1759319576916,0.26594383,116660.0,116650.0,1.04715083]
[1759319578155,0.26594383,116660.0,116650.0,0.35707083]
[1759319578356,0.26594383,116660.0,116650.0,1.04715083]
[1759319578558,0.26594383,116660.0,116650.0,0.01707083]
[1759319578801,0.27396346,116660.0,116650.0,0.70715083]
[1759319579003,0.27396346,116660.0,116650.0,0.48983083]
[1759319580577,0.27396346,116660.0,116650.0,0.26143083]
[1759319580780,0.27396346,116660.0,116650.0,0.70715083]
[1759319583122,0.27395828,116660.0,116650.0,0.70715083]
[1759319584221,0.26281383,116660.0,116650.0,0.70715083]
[1759319584418,0.26594383,116660.0,116650.0,0.70715083]
[1759319585081,0.26281383,116660.0,116650.0,0.70913083]
[1759319585451,0.26281383,116660.0,116650.0,0.70715083]
[1759319585652,0.26594383,116660.0,116650.0,0.70715083]
[1759319586261,0.26281383,116660.0,116650.0,0.70913083]
[1759319586720,0.26594383,116660.0,116650.0,0.70715083]
[1759319587574,0.26281383,116660.0,116650.0,0.70913083]
[1759319587863,0.26281383,116660.0,116650.0,0.71222083]
[1759319588028,0.26082383,116660.0,116650.0,0.71222083]
[1759319588232,0.17143703,116670.0,116650.0,9.24895746]
[1759319588433,0.17143836,116660.0,116650.0,1.24586746]
[1759319588633,0.17143836,116660.0,116650.0,9.24586746]
[1759319588865,0.2608225,116670.0,116650.0,9.24586746]
[1759319589079,0.2608225,116670.0,116660.0,8.00309]
[1759319589408,0.2608225,116670.0,116660.0,0.00309]
[1759319589564,0.2608225,116670.0,116660.0,0.00507]
[1759319590169,0.2608225,116670.0,116660.0,0.69523]
[1759319592884,0.2608225,116670.0,116660.0,0.69515]
[1759319593078,0.2608225,116670.0,116660.0,0.60603]
[1759319593283,0.2608225,116670.0,116660.0,0.69515]
[1759319594593,0.17143703,116670.0,116660.0,1.20658836]
[1759319594801,0.17143703,116670.0,116660.0,1.23187193]
[1759319597255,0.17143703,116670.0,116660.0,0.37035357]
[1759319597486,0.17143703,116670.0,116660.0,1.20658836]
[1759319597663,0.17143703,116670.0,116660.0,0.51650836]
[1759319597815,0.17143703,116670.0,116660.0,1.20654836]
[1759319601048,0.17143703,116670.0,116660.0,0.76082836]
[1759319601377,0.17143703,116670.0,116660.0,1.20654836]
[1759319601956,0.17143703,116670.0,116660.0,0.51650836]
[1759319602187,0.17143703,116670.0,116660.0,1.20654836]
[1759319602363,0.17143703,116670.0,116660.0,1.19654836]
[1759319602575,0.17143703,116670.0,116660.0,1.19854836]
[1759319604784,0.18310942,116680.0,116670.0,0.17142367]
[1759319604785,0.17997942,116680.0,116670.0,0.17142367]
[1759319604975,0.17142367,116670.0,116660.0,0.33507]
[1759319605184,0.17340367,116670.0,116660.0,8.33507]
[1759319605488,0.17653367,116670.0,116660.0,1.02511]
[1759319607284,0.26591914,116670.0,116660.0,1.02511]
[1759319607684,0.26591914,116670.0,116660.0,0.33507]
[1759319607862,0.26591914,116670.0,116660.0,1.02511]
[1759319608095,0.26591914,116670.0,116660.0,0.69004]
[1759319608924,0.17143836,116660.0,116650.0,0.52881809]
[1759319609131,0.17143836,116660.0,116650.0,8.3593652]
[1759319609341,0.17341836,116660.0,116650.0,9.22085826]
[1759319609533,0.17341836,116660.0,116650.0,8.53081826]
[1759319609763,0.17341836,116660.0,116650.0,9.22085826]
[1759319610153,0.17143836,116660.0,116650.0,9.22085826]
[1759319610519,0.17143836,116660.0,116650.0,9.13173826]
[1759319610717,0.17143836,116660.0,116650.0,9.22085826]
[1759319610909,0.17143836,116660.0,116650.0,9.22081826]
[1759319611299,0.17143836,116660.0,116650.0,8.53081826]
[1759319611471,0.17143836,116660.0,116650.0,8.9602452]
[1759319611742,0.17143836,116660.0,116650.0,9.0493652]
[1759319611958,0.17143836,116660.0,116650.0,8.81520404]
[1759319612113,0.17143836,116660.0,116650.0,8.692]
[1759319612493,0.17654836,116660.0,116650.0,8.26156848]
[1759319612697,0.26593383,116660.0,116650.0,8.46096848]
[1759319612910,0.26593383,116660.0,116650.0,0.46096848]
[1759319613119,0.26593383,116660.0,116650.0,0.70524848]
[1759319613736,0.26593383,116660.0,116650.0,0.25956848]
[1759319613935,0.26593383,116660.0,116650.0,0.70524848]
[1759319616495,0.26593383,116660.0,116650.0,0.01528848]
[1759319616659,0.26593383,116660.0,116650.0,0.69004]
[1759319617639,0.17146776,116640.0,116630.0,0.52286657]
[1759319617838,0.17151421,116640.0,116630.0,9.57150657]
[1759319618365,0.17151421,116640.0,116630.0,8.54005775]
[1759319618568,0.17151421,116640.0,116630.0,9.58665775]
[1759319619198,0.17151421,116640.0,116630.0,8.37379118]
[1759319619406,0.26600968,116640.0,116630.0,8.37179118]
[1759319619605,0.26600968,116640.0,116630.0,0.70523118]
[1759319619777,0.26600968,116640.0,116630.0,0.25951118]
[1759319619986,0.26600968,116640.0,116630.0,0.70523118]
[1759319620186,0.26600968,116640.0,116630.0,0.70723118]
[1759319620730,0.26287968,116640.0,116630.0,0.70723118]
[1759319620873,0.26280974,116640.0,116630.0,0.70723118]
[1759319621507,0.17144427,116640.0,116630.0,0.88152364]
[1759319621865,0.17144427,116640.0,116630.0,0.71004118]
[1759319622076,0.17144427,116640.0,116630.0,0.70723118]
[1759319622927,0.17342427,116640.0,116630.0,0.26151118]
[1759319623235,0.17655427,116640.0,116630.0,0.70523118]
[1759319624205,0.17655427,116640.0,116630.0,0.70723118]
[1759319624610,0.17655427,116640.0,116630.0,0.70531118]
[1759319624996,0.17655427,116640.0,116630.0,0.01519118]
[1759319625197,0.17655427,116640.0,116630.0,0.69012]
[1759319625693,0.17148246,116630.0,116610.0,0.18289638]
[1759319625937,0.17148246,116630.0,116620.0,9.04876]
[1759319626157,0.17148246,116630.0,116620.0,8.002]
[1759319626286,0.17148246,116630.0,116620.0,9.22025717]
[1759319627024,0.17148246,116630.0,116620.0,9.22306717]
[1759319629425,0.17148246,116630.0,116620.0,9.23885583]
[1759319629913,0.27253312,116640.0,116630.0,0.17148246]
[1759319630146,0.18008759,116640.0,116630.0,0.1906307]
[1759319630373,0.18008759,116640.0,116630.0,0.17629246]
[1759319631422,0.18008759,116640.0,116630.0,0.2012649]
[1759319631655,0.18008759,116640.0,116630.0,0.1984549]
[1759319631877,0.18008759,116640.0,116630.0,0.2012649]
[1759319634131,0.18008759,116640.0,116630.0,0.1984549]
[1759319635123,0.18008759,116640.0,116630.0,0.02697244]
[1759319635499,0.18008759,116640.0,116630.0,0.71713244]
[1759319635710,0.18008759,116640.0,116630.0,0.8886149]
[1759319636307,0.18008759,116640.0,116630.0,0.8914249]
[1759319637150,4.645e-05,116640.0,116630.0,0.8914249]
[1759319637357,4.645e-05,116640.0,116630.0,8.8914249]
[1759319637532,0.17151421,116640.0,116630.0,8.8914249]
[1759319637877,0.17151421,116640.0,116630.0,8.2012649]
[1759319638075,0.17151421,116640.0,116630.0,9.2481049]
[1759319638918,4.645e-05,116640.0,116630.0,9.2481049]
[1759319639123,0.17151421,116640.0,116630.0,9.2481049]
[1759319639322,0.17151421,116640.0,116630.0,8.2012649]
[1759319639511,4.645e-05,116640.0,116630.0,9.2481049]
[1759319639905,0.17151421,116640.0,116630.0,8.2012649]
[1759319640136,0.17151421,116640.0,116630.0,9.22313246]
[1759319640355,4.645e-05,116640.0,116630.0,9.22313246]
[1759319640901,4.645e-05,116640.0,116630.0,9.2481049]
[1759319642004,0.17151421,116640.0,116630.0,9.2481049]
[1759319642219,4.645e-05,116640.0,116630.0,9.2481049]
[1759319646390,4.645e-05,116640.0,116630.0,9.70764227]
[1759319646600,4.645e-05,116640.0,116630.0,9.76895242]
[1759319646798,4.645e-05,116640.0,116630.0,9.79468559]
[1759319647003,4.645e-05,116640.0,116630.0,8.74784559]
[1759319647210,4.645e-05,116640.0,116630.0,9.79460559]
[1759319647767,4.645e-05,116640.0,116630.0,8.74784559]
[1759319647970,4.645e-05,116640.0,116630.0,9.34880559]
[1759319648178,4.645e-05,116640.0,116630.0,9.79460559]
[1759319648371,4.645e-05,116640.0,116630.0,9.85989548]
[1759319648814,4.645e-05,116640.0,116630.0,8.81313548]
[1759319649287,4.645e-05,116640.0,116630.0,9.85989548]
[1759319652050,4.645e-05,116640.0,116630.0,8.81313548]
[1759319652260,4.645e-05,116640.0,116630.0,9.83488304]
[1759319653397,4.645e-05,116640.0,116630.0,9.85985548]
[1759319653596,4.645e-05,116640.0,116630.0,9.79854533]
[1759319653812,4.645e-05,116640.0,116630.0,9.70930533]
[1759319654017,4.645e-05,116640.0,116630.0,9.79842533]
[1759319655726,4.645e-05,116640.0,116630.0,8.75182533]
[1759319655936,4.645e-05,116640.0,116630.0,9.79846533]
[1759319656554,4.645e-05,116640.0,116630.0,8.69980535]
[1759319656819,4.645e-05,116640.0,116630.0,9.74644535]
[1759319656987,4.645e-05,116640.0,116630.0,9.74652535]
[1759319664601,4.645e-05,116640.0,116630.0,9.8077263]
[1759319665553,4.645e-05,116640.0,116630.0,8.7610063]
[1759319665756,4.645e-05,116640.0,116630.0,9.8075663]
[1759319666299,4.645e-05,116640.0,116630.0,9.82303909]
[1759319668804,4.645e-05,116640.0,116630.0,9.82269195]
[1759319670823,0.06725265,116670.0,116660.0,0.17143836]
[1759319671034,0.06733239,116670.0,116660.0,8.45728124]
[1759319671515,0.00525974,116670.0,116660.0,8.54623444]
[1759319671711,7.974e-05,116670.0,116660.0,8.54623444]
[1759319672174,0.00208974,116670.0,116660.0,8.54623444]
[1759319672376,0.00525974,116670.0,116660.0,8.54623444]
[1759319672593,7.974e-05,116670.0,116660.0,8.54623444]
[1759319673437,0.00208974,116670.0,116660.0,8.54623444]
[1759319673600,0.00525974,116670.0,116660.0,8.54623444]
[1759319673798,7.974e-05,116670.0,116660.0,8.54623444]
[1759319674262,0.00208974,116670.0,116660.0,8.54623444]
[1759319674480,7.974e-05,116670.0,116660.0,8.57638634]
[1759319674825,7.974e-05,116670.0,116660.0,8.60211379]
[1759319675264,7.974e-05,116670.0,116660.0,8.26871379]
[1759319675414,7.974e-05,116670.0,116660.0,9.31511379]
[1759319675849,7.974e-05,116670.0,116660.0,9.65511379]
[1759319676416,7.974e-05,116670.0,116660.0,9.56599379]
[1759319676612,7.974e-05,116670.0,116660.0,8.58374135]
[1759319676872,0.00525974,116670.0,116660.0,8.58374135]
[1759319677025,0.00525974,116670.0,116660.0,9.18450135]
[1759319677244,7.974e-05,116670.0,116660.0,9.63014135]
[1759319677711,7.974e-05,116670.0,116660.0,8.58374135]
[1759319678015,0.00525974,116670.0,116660.0,9.29678135]
[1759319678226,0.00525974,116670.0,116660.0,8.58374135]
[1759319678635,0.00525974,116670.0,116660.0,9.59998945]
[1759319679055,0.00525974,116670.0,116660.0,9.15434945]
[1759319679262,0.00525974,116670.0,116660.0,9.59998945]
[1759319680995,0.00525974,116670.0,116660.0,8.55358945]
[1759319681398,0.00525974,116670.0,116660.0,9.59998945]
[1759319681602,0.00525974,116670.0,116660.0,9.15434945]
[1759319681972,0.00525974,116670.0,116660.0,9.59998945]
[1759319683566,0.18470833,116670.0,116660.0,8.75460288]
[1759319683947,0.18470833,116670.0,116660.0,8.99884288]
[1759319685103,0.18470852,116670.0,116660.0,8.99884288]
[1759319686083,0.17668341,116670.0,116660.0,8.99884288]
[1759319686642,0.17668341,116670.0,116660.0,9.17028124]
[1759319687436,0.17668341,116670.0,116660.0,9.19525368]
[1759319689006,0.17668341,116670.0,116660.0,9.17028124]
[1759319690065,0.17668341,116670.0,116660.0,7.95244288]
[1759319690248,0.17668341,116670.0,116660.0,8.99884288]
[1759319691048,0.17668341,116670.0,116660.0,8.55324288]
[1759319691274,0.17668341,116670.0,116660.0,8.99892288]
[1759319692557,0.26606888,116670.0,116660.0,7.95244288]
[1759319692734,0.27409295,116670.0,116660.0,0.44568]
[1759319692918,0.27409295,116670.0,116660.0,0.68992]
[1759319693460,0.29982713,116670.0,116660.0,0.68992]
[1759319695426,0.17145306,116650.0,116640.0,0.87657541]
[1759319695604,0.17344306,116650.0,116640.0,9.56649541]
[1759319695741,0.17656306,116650.0,116640.0,9.56649541]
[1759319698339,0.17656306,116650.0,116640.0,8.52001541]
[1759319698746,0.17656306,116650.0,116640.0,9.55794776]
[1759319700549,0.17656306,116650.0,116640.0,8.34]
[1759319700802,0.17656306,116650.0,116640.0,9.38648]
[1759319701033,0.17656306,116650.0,116640.0,9.55794776]
[1759319701978,0.17656306,116650.0,116640.0,8.34]
[1759319702550,0.17656306,116650.0,116640.0,9.02996]
[1759319703398,0.17656306,116650.0,116640.0,8.0]
[1759319703609,0.26594853,116650.0,116640.0,0.68996]
[1759319703785,0.26594853,116650.0,116640.0,8.68996]
[1759319704493,0.26594853,116650.0,116640.0,8.0]
[1759319704703,0.26594853,116650.0,116640.0,8.68996]
[1759319707772,0.26594853,116650.0,116640.0,8.86142776]
[1759319708002,0.26594853,116650.0,116640.0,8.68996]
[1759319708994,0.26594853,116650.0,116640.0,8.71493244]
[1759319710912,0.26594853,116650.0,116640.0,8.8864002]
[1759319711133,0.17344306,116650.0,116640.0,8.8864002]
[1759319711351,0.17145306,116650.0,116640.0,8.8864002]
[1759319711757,0.17344306,116650.0,116640.0,8.8864002]
[1759319711973,0.17145306,116650.0,116640.0,8.8864002]
[1759319712127,0.17656306,116650.0,116640.0,8.8864002]
[1759319712335,0.00511,116650.0,116640.0,8.8864002]
[1759319712513,0.19717574,116660.0,116640.0,8.8864002]
[1759319712514,0.11143836,116660.0,116640.0,8.8864002]
[1759319712714,0.20394383,116660.0,116650.0,8.24428]
[1759319712922,0.20394383,116660.0,116650.0,0.24428]
[1759319713147,0.20593383,116660.0,116650.0,0.24428]
[1759319715729,0.20593383,116660.0,116640.0,0.52810776]
[1759319715730,0.17145306,116650.0,116640.0,0.52810776]
[1759319715932,0.17344306,116650.0,116640.0,8.17146776]
[1759319716148,0.17656306,116650.0,116640.0,8.0]
[1759319716353,0.17656306,116650.0,116640.0,9.04672]
[1759319717787,0.17656306,116650.0,116640.0,8.0]
[1759319717985,0.17656306,116650.0,116640.0,9.04672]
[1759319719384,0.17656306,116650.0,116640.0,9.21818776]
[1759319720322,0.17656306,116650.0,116640.0,9.04672]
[1759319721131,0.17656306,116650.0,116640.0,9.21818776]
[1759319722183,0.17656306,116650.0,116640.0,9.21814776]
[1759319722929,0.17145306,116650.0,116640.0,9.21814776]
[1759319723358,0.17344306,116650.0,116640.0,9.21814776]
[1759319724163,0.17145306,116650.0,116640.0,9.21814776]
[1759319725280,0.17145306,116650.0,116640.0,9.24507848]
[1759319725770,0.17145306,116650.0,116640.0,8.19839848]
[1759319725970,0.17145306,116650.0,116640.0,9.24507848]
[1759319726694,0.17145306,116650.0,116640.0,8.19839848]
[1759319726917,0.17145306,116650.0,116640.0,9.24507848]
[1759319730198,0.20380383,116660.0,116650.0,0.17145306]
[1759319730437,0.21382621,116660.0,116650.0,0.41569306]
[1759319731716,0.21382621,116660.0,116650.0,0.24424]
[1759319731921,0.21382621,116660.0,116650.0,0.41569306]
[1759319732671,0.21382621,116660.0,116650.0,0.24424]
[1759319732869,0.21382621,116660.0,116650.0,0.41569306]
[1759319733368,0.00803238,116660.0,116650.0,0.41569306]
[1759319733577,0.18305459,116670.0,116660.0,0.17143836]
[1759319733777,0.28246296,116670.0,116660.0,0.60088]
[1759319733982,0.28246296,116670.0,116660.0,0.86147836]
[1759319735194,0.18504459,116670.0,116660.0,0.17143836]
[1759319735508,0.18504459,116670.0,116660.0,0.86147836]
[1759319735509,0.00504974,116670.0,116660.0,0.86147836]
[1759319735713,0.17647341,116670.0,116660.0,0.86147836]
[1759319735912,0.00504974,116670.0,116660.0,0.86147836]
[1759319736068,0.00206974,116670.0,116660.0,0.86147836]
[1759319736273,7.974e-05,116670.0,116660.0,0.86147836]
[1759319738834,7.974e-05,116670.0,116660.0,0.17143836]
[1759319739049,7.974e-05,116670.0,116660.0,1.21795836]
[1759319739467,7.974e-05,116670.0,116660.0,1.24563055]
[1759319739668,7.974e-05,116670.0,116660.0,9.24563055]
[1759319740129,7.974e-05,116670.0,116660.0,8.19911055]
[1759319740346,7.974e-05,116670.0,116660.0,9.24563055]
[1759319740709,7.974e-05,116670.0,116660.0,9.61578245]
[1759319741041,7.974e-05,116670.0,116660.0,8.56926245]
[1759319741251,7.974e-05,116670.0,116660.0,8.59498968]
[1759319741806,7.974e-05,116670.0,116660.0,9.61383749]
[1759319742686,7.974e-05,116670.0,116660.0,8.56731749]
[1759319742900,7.974e-05,116670.0,116660.0,8.53716559]
[1759319743103,7.974e-05,116670.0,116660.0,9.58368559]
[1759319746961,7.974e-05,116670.0,116660.0,9.13788559]
[1759319747179,7.974e-05,116670.0,116660.0,9.58356559]
[1759319753034,7.974e-05,116670.0,116660.0,9.64138968]
[1759319755432,7.974e-05,116670.0,116660.0,9.19562968]
[1759319755635,7.974e-05,116670.0,116660.0,9.64126968]
[1759319757775,7.974e-05,116670.0,116660.0,8.59498968]
[1759319757948,7.974e-05,116670.0,116660.0,9.64126968]
[1759319758532,7.974e-05,116670.0,116660.0,9.6411849]
[1759319760749,7.974e-05,116670.0,116660.0,9.40740664]
[1759319760946,7.974e-05,116670.0,116660.0,9.578845]
[1759319765608,7.974e-05,116670.0,116660.0,9.66823047]
[1759319767028,7.974e-05,116670.0,116660.0,9.72943803]
[1759319769032,7.974e-05,116670.0,116660.0,9.89610803]
[1759319769723,7.974e-05,116670.0,116660.0,8.84982803]
[1759319769967,7.974e-05,116670.0,116660.0,9.89594803]
[1759319770122,7.974e-05,116670.0,116660.0,8.84982803]
[1759319770588,0.000857,116690.0,116680.0,0.70823088]
[1759319770589,1e-08,116690.0,116680.0,0.70823088]
[1759319770756,1e-08,116690.0,116680.0,8.73541541]
[1759319770959,1e-08,116690.0,116680.0,8.7630876]
[1759319771161,1e-08,116690.0,116680.0,8.90253307]
[1759319771388,1e-08,116690.0,116680.0,8.93020526]
[1759319772100,0.00303,116710.0,116700.0,0.5113796]
[1759319772302,0.00560531,116710.0,116700.0,8.69299492]
[1759319772489,0.00046531,116710.0,116700.0,8.69299492]
[1759319772692,0.00046531,116710.0,116700.0,8.7187145]
[1759319773312,0.00046531,116710.0,116700.0,8.4746745]
[1759319773480,0.00046531,116710.0,116700.0,8.74634669]
[1759319773681,0.00046531,116710.0,116700.0,8.50234669]
[1759319773883,0.00046531,116710.0,116700.0,8.74634669]
[1759319774956,0.00046531,116710.0,116700.0,8.50234669]
[1759319775120,0.00560531,116710.0,116700.0,8.74634669]
[1759319775328,0.00046531,116710.0,116700.0,8.74634669]
[1759319775762,0.00046531,116710.0,116700.0,8.86588406]
[1759319775964,0.00046531,116710.0,116700.0,8.62188406]
[1759319776139,0.00046531,116710.0,116700.0,8.59593292]
[1759319776341,0.00560531,116710.0,116700.0,8.50654745]
[1759319776549,0.00560531,116710.0,116700.0,8.75054745]
[1759319776894,0.00046531,116710.0,116700.0,8.75054745]
[1759319777067,0.00046531,116710.0,116700.0,8.50654745]
[1759319777267,0.16991786,116720.0,116710.0,0.17136492]
[1759319777479,0.17216731,116720.0,116710.0,8.38061243]
[1759319777875,0.00224945,116720.0,116710.0,8.38061243]
[1759319778512,0.00224945,116720.0,116710.0,9.18257243]
[1759319778684,0.00013945,116720.0,116710.0,9.18421243]
[1759319780792,0.00013945,116720.0,116710.0,9.21714288]
[1759319781836,0.00013945,116720.0,116710.0,9.24481507]
[1759319782063,0.00013945,116720.0,116710.0,8.19897507]
[1759319782469,0.00013945,116720.0,116710.0,9.24481507]
[1759319783360,0.00013945,116720.0,116710.0,9.24584507]
[1759319783993,0.00013945,116720.0,116710.0,9.24481507]
[1759319784193,0.00013945,116720.0,116710.0,9.24584507]
[1759319784414,0.00013945,116720.0,116710.0,9.33901843]
[1759319784830,0.00013945,116720.0,116710.0,9.4284039]
[1759319788306,0.00013945,116720.0,116710.0,9.7684039]
[1759319789718,0.00013945,116720.0,116710.0,9.82952465]
[1759319790321,0.08892271,116730.0,116720.0,0.62062432]
[1759319790545,0.08896916,116730.0,116720.0,8.64861481]
[1759319790807,0.08896916,116730.0,116720.0,8.65992556]
[1759319791014,0.08896916,116730.0,116720.0,9.04199486]
[1759319791240,0.00124917,116740.0,116730.0,0.51133556]
[1759319791433,0.00124917,116740.0,116730.0,8.78221635]
[1759319791646,0.00124917,116740.0,116730.0,8.5701147]
[1759319791851,0.00124917,116740.0,116730.0,8.9031147]
[1759319792057,0.00124917,116740.0,116730.0,8.59582125]
[1759319792276,0.00124917,116740.0,116730.0,8.98027125]
[1759319792686,0.00124917,116740.0,116730.0,9.01042315]
[1759319798525,0.00124917,116740.0,116730.0,9.88330315]
[1759319798928,0.1005,116750.0,116740.0,0.59292278]
[1759319799148,0.1005,116750.0,116740.0,8.89340479]
[1759319799358,0.1005,116750.0,116740.0,9.00862479]
[1759319799563,0.0020414,116760.0,116750.0,0.5113062]
[1759319799766,0.0020414,116760.0,116750.0,8.8561684]
[1759319799980,0.0020414,116760.0,116750.0,8.9092584]
[1759319800194,0.0020414,116760.0,116750.0,8.9742242]
[1759319800401,0.1,116770.0,116750.0,8.9742242]
[1759319800402,0.1,116770.0,116760.0,0.59289343]
[1759319800632,0.10013939,116770.0,116760.0,8.99655307]
[1759319801355,0.10013939,116770.0,116760.0,9.00568478]
[1759319801569,0.10013939,116770.0,116760.0,9.33696478]
[1759319801778,0.10013939,116770.0,116760.0,8.64780478]
[1759319802020,0.10013939,116770.0,116760.0,8.95263478]
[1759319802229,0.10013939,116770.0,116760.0,8.59635478]
[1759319802431,0.10013939,116770.0,116760.0,9.28551478]
[1759319803667,0.10013939,116770.0,116760.0,9.3112151]
[1759319805515,0.10013939,116770.0,116760.0,8.6220551]
[1759319805773,0.10013939,116770.0,116760.0,9.3111351]
[1759319806687,0.10013939,116770.0,116760.0,9.32699312]
[1759319808120,0.10013939,116770.0,116760.0,8.63791312]
[1759319808321,0.10013939,116770.0,116760.0,9.32695312]
[1759319808600,0.10013939,116770.0,116760.0,9.84343312]
[1759319810713,0.10013939,116770.0,116760.0,9.8275751]
[1759319810922,0.10013939,116770.0,116760.0,9.8790251]
[1759319811133,0.10013939,116770.0,116760.0,8.8337851]
[1759319811336,0.10013939,116770.0,116760.0,9.8789851]
[1759319813472,0.10013939,116770.0,116760.0,8.8337851]
[1759319813692,0.10219939,116770.0,116760.0,9.5450751]
[1759319813872,0.10013939,116770.0,116760.0,9.8778751]
[1759319814112,0.10013939,116770.0,116760.0,9.8789051]
[1759319814327,0.10013939,116770.0,116760.0,9.8778751]
[1759319814534,0.10013939,116770.0,116760.0,9.8789051]
[1759319814778,1e-08,116770.0,116760.0,8.92372454]
[1759319814981,1e-08,116770.0,116760.0,9.19162061]
[1759319815192,1e-08,116770.0,116760.0,9.88058061]
[1759319815790,1e-08,116770.0,116760.0,9.89643502]
[1759319816287,0.00057125,116780.0,116770.0,0.54142876]
[1759319816479,0.00057125,116780.0,116770.0,8.85496003]
[1759319816996,0.00057125,116780.0,116770.0,8.88066238]
[1759319817238,0.00057125,116780.0,116770.0,8.93211238]
[1759319817655,0.00057125,116780.0,116770.0,8.91625504]
[1759319818138,0.00057125,116780.0,116770.0,8.67249504]
[1759319818352,0.00057125,116780.0,116770.0,9.71761504]
[1759319819831,0.00057125,116780.0,116770.0,9.62853504]
[1759319820097,0.00057125,116780.0,116770.0,9.71757504]
[1759319822016,0.00263125,116780.0,116770.0,9.42240504]
[1759319822234,0.00581125,116780.0,116770.0,8.62104504]
[1759319822425,0.00263125,116780.0,116770.0,9.64042562]
[1759319822633,0.00057125,116780.0,116770.0,9.64042562]
[1759319823610,0.00057125,116780.0,116770.0,9.19522562]
[1759319823846,0.00057125,116780.0,116770.0,9.64042562]
[1759319824549,0.00057125,116780.0,116770.0,9.58904768]
[1759319824865,0.00057125,116780.0,116770.0,9.50000768]
[1759319825079,0.00057125,116780.0,116770.0,9.58904768]
[1759319825428,0.00057125,116780.0,116770.0,8.54396768]
[1759319825626,0.27677303,116790.0,116780.0,0.29736875]
[1759319825839,0.27677303,116790.0,116780.0,8.47918407]
[1759319825840,0.27883303,116790.0,116780.0,8.47918407]
[1759319826051,0.28201303,116790.0,116780.0,8.47918407]
[1759319828585,0.28201303,116790.0,116780.0,8.50439412]
[1759319829823,0.28201303,116790.0,116780.0,8.26015412]
[1759319830031,0.28201303,116790.0,116780.0,9.30575412]
[1759319830747,0.28201303,116790.0,116780.0,8.26015412]
[1759319831046,0.28201303,116790.0,116780.0,9.28050407]
[1759319831542,0.28201303,116790.0,116780.0,8.23494407]
[1759319831706,0.28201303,116790.0,116780.0,8.92430407]
[1759319833328,0.28201303,116790.0,116780.0,0.29736875]
[1759319833488,0.3713985,116790.0,116780.0,0.98672875]
[1759319833689,0.3713985,116790.0,116780.0,0.54152875]
[1759319833912,0.3713985,116790.0,116780.0,0.98672875]
[1759319834539,0.3713985,116790.0,116780.0,0.29736875]
[1759319834746,0.3713985,116790.0,116780.0,0.98668875]
[1759319838473,0.3713985,116790.0,116780.0,1.18043875]
[1759319841636,0.3713985,116790.0,116780.0,1.18039875]
[1759319843435,0.3713985,116790.0,116780.0,0.73511875]
[1759319843652,0.3713985,116790.0,116780.0,1.18035875]
[1759319844975,0.3713985,116790.0,116780.0,1.2055688]
[1759319845620,0.3713985,116790.0,116780.0,1.376831]
[1759319845829,0.3682185,116790.0,116780.0,1.376831]
[1759319846031,0.3711485,116790.0,116780.0,1.376831]
[1759319847303,0.28176303,116790.0,116780.0,1.376831]
[1759319850396,0.28176303,116790.0,116780.0,0.687591]
[1759319850599,0.28176303,116790.0,116780.0,1.377511]
[1759319851765,0.28176303,116790.0,116780.0,1.2061688]
[1759319852284,0.28176303,116790.0,116780.0,1.377431]
[1759319853180,0.28176303,116790.0,116780.0,0.5163288]
[1759319853387,0.28176303,116790.0,116780.0,1.2061688]
[1759319853591,0.3711485,116790.0,116780.0,0.49111875]
[1759319853837,0.3711485,116790.0,116780.0,1.18091875]
[1759319854078,0.3711485,116790.0,116780.0,0.49111875]
[1759319854347,0.3711485,116790.0,116780.0,1.18091875]
[1759319855227,0.3711485,116790.0,116780.0,0.73567875]
[1759319855430,0.3711485,116790.0,116780.0,1.18087875]
[1759319856066,0.3711485,116790.0,116780.0,0.49111875]
[1759319856402,0.3711485,116790.0,116780.0,1.18087875]
[1759319856849,0.3711485,116790.0,116780.0,0.49111875]
[1759319857051,0.3711485,116790.0,116780.0,1.18087875]
[1759319858467,0.3711485,116790.0,116780.0,1.2060888]
[1759319858687,0.3711485,116790.0,116780.0,0.7607688]
[1759319858947,0.3711485,116790.0,116780.0,1.2060088]
[1759319859635,0.3711485,116790.0,116780.0,1.2060488]
[1759319860484,0.3711485,116790.0,116780.0,1.18083875]
[1759319865051,0.3711485,116790.0,116780.0,0.49111875]
[1759319865185,0.3711485,116790.0,116780.0,1.18067875]
[1759319866182,0.3711485,116790.0,116780.0,0.49111875]
[1759319866576,0.3711485,116790.0,116780.0,1.18059875]
[1759319866797,0.3711485,116790.0,116780.0,0.49111875]
[1759319866983,0.3711485,116790.0,116780.0,1.18059875]
[1759319868850,0.3711485,116790.0,116780.0,1.18055875]
[1759319869905,0.3711485,116790.0,116780.0,0.49111875]
[1759319870327,0.3711485,116790.0,116780.0,1.18051875]